fUSD/lending_fUSD_20240625
["ID","MTS","AMOUNT","RATE_DAILY","PERIOD"]
[330386203,1719339047926,-271.26559914,0.00019178,2]
[330386204,1719339047938,-1974.92021585,0.00019178,2]
[330386205,1719339047955,-7021.37495721,0.00019178,2]
[330386206,1719339047966,-3162.95999983,0.00019178,2]
[330386207,1719339048054,-3870.18624551,0.00019178,2]
[330386208,1719339048066,-8088.18290298,0.00019178,2]
[330386209,1719339048075,-500.0,0.00019178,2]
[330386210,1719339048084,-501.41525893,0.00019178,2]
[330386211,1719339048093,-500.0,0.00019178,2]
[330386212,1719339048102,-500.0,0.00019178,2]
[330386213,1719339048111,-297.98160319,0.00019178,2]
[330386214,1719339048120,-500.0,0.00019178,2]
[330386215,1719339048129,-500.0,0.00019178,2]
[330386216,1719339048138,-632.64,0.00019178,2]
[330386217,1719339048148,-500.0,0.00019178,2]
[330386218,1719339048157,-4544.0,0.00019178,2]
[330386219,1719339048167,-521.91,0.00019178,2]
[330386220,1719339048176,-500.0,0.00019178,2]
[330386221,1719339048186,-546.26,0.00019178,2]
[330386222,1719339048195,-500.0,0.00019178,2]
[330386223,1719339048204,-500.0,0.00019178,2]
[330386224,1719339048213,-500.0,0.00019178,2]
[330386225,1719339048224,-552.2,0.00019178,2]
[330386226,1719339048233,-500.0,0.00019178,2]
[330386227,1719339048243,-569.35,0.00019178,2]
[330386228,1719339048252,-500.0,0.00019178,2]
[330386229,1719339048262,-589.97,0.00019178,2]
[330386230,1719339048271,-1646.54,0.00019178,2]
[330386231,1719339048281,-1988.4,0.00019178,2]
[330386232,1719339048290,-500.0,0.00019178,2]
[330386233,1719339048305,-4779.1102349,0.00019178,2]
[330386234,1719339048318,-782.6097651,0.00019178,2]
[330386235,1719339048329,-500.0,0.00019178,2]
[330386236,1719339048338,-283.61951237,0.00019178,2]
[330386237,1719339048347,-3724.34,0.00019178,2]
[330386238,1719339048356,-725.1,0.00019178,2]
[330386239,1719339048366,-500.0,0.00019178,2]
[330386240,1719339048375,-500.0,0.00019178,2]
[330386241,1719339048384,-500.0,0.00019178,2]
[330386242,1719339048393,-500.0,0.00019178,2]
[330386243,1719339048403,-457.4681968,0.00019178,2]
[330386244,1719339048415,-42.5318032,0.00019178,2]
[330386245,1719339048424,-586.96,0.00019178,2]
[330386246,1719339048434,-1952.86,0.00019178,2]
[330386247,1719339048443,-1344.76613445,0.00019178,2]
[330386248,1719339048455,-397.63098387,0.00019178,2]
[330386249,1719339048467,-348.20288168,0.00019178,2]
[330386250,1719339048476,-28.75305232,0.00019178,2]
[330386251,1719339048488,-507.18694768,0.00019178,2]
[330386252,1719339048497,-3247.93805232,0.00019178,2]
[330386253,1719339048543,-670.7,0.00019178,2]
[330386254,1719339048556,-766.44194768,0.00019178,2]
[330386255,1719339048566,-563.5,0.00019178,2]
[330386256,1719339048576,-500.0,0.00019178,2]
[330386257,1719339048585,-500.0,0.00019178,2]
[330386258,1719339048594,-535.52,0.00019178,2]
[330386259,1719339048606,-500.0,0.00019178,2]
[330386260,1719339048615,-500.0,0.00019178,2]
[330386261,1719339048624,-500.0,0.00019178,2]
[330386262,1719339048634,-500.0,0.00019178,2]
[330386263,1719339048643,-11900.67,0.00019178,2]
[330386264,1719339048652,-500.0,0.00019178,2]
[330386265,1719339048662,-1265.78,0.00019178,2]
[330386266,1719339048671,-500.0,0.00019178,2]
[330386267,1719339048680,-645.67,0.00019178,2]
[330386268,1719339048689,-931.46,0.00019178,2]
[330386269,1719339048698,-500.0,0.00019178,2]
[330386270,1719339048707,-500.0,0.00019178,2]
[330386271,1719339048716,-675.52,0.00019178,2]
[330386272,1719339048725,-500.0,0.00019178,2]
[330386273,1719339048734,-500.0,0.00019178,2]
[330386274,1719339048743,-666.06,0.00019178,2]
[330386275,1719339048753,-2773.59,0.00019178,2]
[330386276,1719339048762,-500.0,0.00019178,2]
[330386277,1719339048771,-563.58,0.00019178,2]
[330386278,1719339048780,-624.77,0.00019178,2]
[330386279,1719339048789,-500.0,0.00019178,2]
[330386280,1719339048802,-1052.08,0.00019178,2]
[330386281,1719339048811,-500.0,0.00019178,2]
[330386282,1719339048821,-669.44,0.00019178,2]
[330386283,1719339048830,-678.75,0.00019178,2]
[330386284,1719339048839,-2210.15,0.00019178,2]
[330386285,1719339048849,-514.58,0.00019178,2]
[330386286,1719339048858,-500.0,0.00019178,2]
[330386287,1719339048866,-500.0,0.00019178,2]
[330386288,1719339048875,-2279.48,0.00019178,2]
[330386289,1719339048884,-1000.58,0.00019178,2]
[330386290,1719339048894,-1714.44,0.00019178,2]
[330386291,1719339048904,-500.0,0.00019178,2]
[330386292,1719339048913,-500.0,0.00019178,2]
[330386293,1719339048922,-1049.07,0.00019178,2]
[330386294,1719339048931,-1219.5326559,0.00019178,2]
[330386295,1719339049390,-954.0873441,0.00019178,2]
[330386296,1719339049400,-602.4,0.00019178,2]
[330386297,1719339049410,-500.0,0.00019178,2]
[330386298,1719339049419,-500.0,0.00019178,2]
[330386299,1719339049429,-500.0,0.00019178,2]
[330386300,1719339049438,-500.0,0.00019178,2]
[330386301,1719339049447,-3207.84,0.00019178,2]
[330386302,1719339049457,-327.55005499,0.00019178,2]
[330386303,1719339049468,-306.57530453,0.00019178,2]
[330386304,1719339049480,-123.35464048,0.00019178,2]
[330386305,1719339049490,-500.0,0.00019178,2]
[330386306,1719339049499,-995.47,0.00019178,2]
[330386307,1719339049509,-2103.09,0.00019178,2]
[330386308,1719339049522,-500.0,0.00019178,2]
[330386309,1719339049531,-500.0,0.00019178,2]
[330386310,1719339049540,-617.09449385,0.00019178,2]
[330386311,1719339049550,-500.0,0.00019178,2]
[330386312,1719339049560,-4650.02,0.00019178,2]
[330386313,1719339049569,-1197.8,0.00019178,2]
[330386314,1719339049578,-500.0,0.00019178,2]
[330386315,1719339049588,-1611.76,0.00019178,2]
[330386316,1719339049599,-500.0,0.00019178,2]
[330386317,1719339049608,-500.0,0.00019178,2]
[330386318,1719339049617,-500.0,0.00019178,2]
[330386319,1719339049627,-500.0,0.00019178,2]
[330386320,1719339049636,-2446.78,0.00019178,2]
[330386321,1719339049646,-1256.01,0.00019178,2]
[330386322,1719339049655,-623.78,0.00019178,2]
[330386323,1719339049664,-1553.0,0.00019178,2]
[330386324,1719339049674,-774.14,0.00019178,2]
[330386325,1719339049683,-591.46,0.00019178,2]
[330386326,1719339049693,-500.0,0.00019178,2]
[330386327,1719339049702,-500.0,0.00019178,2]
[330386328,1719339049711,-1180.19,0.00019178,2]
[330386329,1719339049721,-1478.04,0.00019178,2]
[330386330,1719339049730,-653.32,0.00019178,2]
[330386331,1719339049740,-500.0,0.00019178,2]
[330386332,1719339049749,-646.08,0.00019178,2]
[330386333,1719339049759,-500.0,0.00019178,2]
[330386334,1719339049768,-500.0,0.00019178,2]
[330386335,1719339049778,-1836.17,0.00019178,2]
[330386336,1719339049787,-1224.38,0.00019178,2]
[330386337,1719339049798,-531.05,0.00019178,2]
[330386338,1719339049808,-500.0,0.00019178,2]
[330386339,1719339049818,-725.01,0.00019178,2]
[330386340,1719339049827,-500.0,0.00019178,2]
[330386341,1719339049837,-500.0,0.00019178,2]
[330386342,1719339049846,-865.97,0.00019178,2]
[330386343,1719339049855,-734.7,0.00019178,2]
[330386344,1719339049865,-510.38,0.00019178,2]
[330386345,1719339049874,-500.0,0.00019178,2]
[330386346,1719339049884,-1145.74,0.00019178,2]
[330386347,1719339049893,-500.0,0.00019178,2]
[330386348,1719339049903,-3028.92,0.00019178,2]
[330386349,1719339049912,-1467.54,0.00019178,2]
[330386350,1719339049922,-500.0,0.00019178,2]
[330386351,1719339049931,-500.0,0.00019178,2]
[330386352,1719339049940,-500.0,0.00019178,2]
[330386353,1719339049950,-500.0,0.00019178,2]
[330386354,1719339049959,-500.0,0.00019178,2]
[330386355,1719339049968,-929.35,0.00019178,2]
[330386356,1719339049978,-819.43,0.00019178,2]
[330386357,1719339049987,-2238.95,0.00019178,2]
[330386358,1719339049996,-500.0,0.00019178,2]
[330386359,1719339050005,-880.72,0.00019178,2]
[330386360,1719339050014,-924.37,0.00019178,2]
[330386361,1719339050023,-545.13,0.00019178,2]
[330386362,1719339050033,-500.0,0.00019178,2]
[330386363,1719339050042,-3916.16,0.00019178,2]
[330386364,1719339050052,-581.06,0.00019178,2]
[330386365,1719339050061,-742.74,0.00019178,2]
[330386366,1719339050069,-500.0,0.00019178,2]
[330386367,1719339050078,-500.0,0.00019178,2]
[330386368,1719339050087,-500.0,0.00019178,2]
[330386369,1719339050096,-500.0,0.00019178,2]
[330386370,1719339050105,-860.07,0.00019178,2]
[330386371,1719339050114,-1869.69,0.00019178,2]
[330386372,1719339050123,-1091.5,0.00019178,2]
[330386373,1719339050132,-500.0,0.00019178,2]
[330386374,1719339050141,-500.0,0.00019178,2]
[330386375,1719339050150,-629.58086567,0.00019178,2]
[330386376,1719339050163,-384.47913433,0.00019178,2]
[330386377,1719339050172,-447.00536916,0.00019178,2]
[330386378,1719339050201,-740.32463084,0.00019178,2]
[330386379,1719339050211,-11229.09,0.00019178,2]
[330386380,1719339050220,-500.0,0.00019178,2]
[330386381,1719339050230,-1374.23,0.00019178,2]
[330386382,1719339050239,-500.0,0.00019178,2]
[330386383,1719339050248,-585.39,0.00019178,2]
[330386384,1719339050258,-2133.98,0.00019178,2]
[330386385,1719339050267,-2385.13,0.00019178,2]
[330386386,1719339050276,-7598.58,0.00019178,2]
[330386387,1719339050286,-1296.17,0.00019178,2]
[330386388,1719339050296,-500.0,0.00019178,2]
[330386389,1719339050305,-500.0,0.00019178,2]
[330386390,1719339050315,-500.0,0.00019178,2]
[330386391,1719339050324,-743.37,0.00019178,2]
[330386392,1719339050333,-900.48,0.00019178,2]
[330386393,1719339050342,-500.0,0.00019178,2]
[330386394,1719339050351,-500.0,0.00019178,2]
[330386395,1719339050360,-500.0,0.00019178,2]
[330386396,1719339050370,-611.19,0.00019178,2]
[330386397,1719339050379,-2099.25,0.00019178,2]
[330386398,1719339050388,-5452.57,0.00019178,2]
[330386399,1719339050397,-500.0,0.00019178,2]
[330386400,1719339050406,-500.0,0.00019178,2]
[330386401,1719339050416,-1867.42,0.00019178,2]
[330386402,1719339050426,-1247.76,0.00019178,2]
[330386403,1719339050436,-1368.05,0.00019178,2]
[330386404,1719339050445,-703.95,0.00019178,2]
[330386405,1719339050455,-500.0,0.00019178,2]
[330386406,1719339050464,-250.0,0.00019178,2]
[330386407,1719339050474,-159.31840219,0.00019352,2]
[330386408,1719339050483,-1023.14625223,0.00019352,2]
[330386409,1719339050495,-3767.59533793,0.00019352,2]
[330386410,1719339050506,-451.5,0.00019352,2]
[330386411,1719339050522,-810.11489108,0.00019352,2]
[330386412,1719339050532,-500.0,0.00019352,2]
[330386413,1719339050541,-1254.7553,0.00019352,2]
[330386414,1719339050553,-282.72249888,0.000194,2]
[330386415,1719339050567,-717.27750112,0.000194,2]
[330386416,1719339050576,-470.10704664,0.00019441,2]
[330386417,1719339050585,-383.17062991,0.00019451,2]
[330386418,1719339051925,-500.0,0.00019178,2]
[330386419,1719339051934,-1628.33075206,0.00019441,2]
[330386420,1719339051943,-2118.91924794,0.00019451,2]
[330386421,1719339051954,-106.35012215,0.00019451,2]
[330386422,1719339051964,-1600.64987785,0.00019451,2]
[330386423,1719339051975,-1419.11012215,0.00019451,2]
[330386424,1719339051984,-114.96487785,0.00019451,2]
[330386425,1719339051996,-2056.76758228,0.00019451,2]
[330386426,1719339052007,-748.17753987,0.00019451,2]
[330386427,1719339052016,-500.0,0.00019451,2]
[330386428,1719339052025,-492.5690085,0.00019451,2]
[330386429,1719339052036,-793.9509915,0.00019451,2]
[330386430,1719339052046,-847.13650724,0.00019451,2]
[330386431,1719339052055,-150.0,0.00019451,2]
[330386432,1719339052064,-680.11,0.00019451,2]
[330386433,1719339052074,-500.0,0.00019452,2]
[330386434,1719339052083,-500.0,0.00019452,2]
[330386435,1719339052092,-500.0,0.00019452,2]
[330386436,1719339052101,-500.0,0.00019452,2]
[330386437,1719339052110,-500.0,0.00019452,2]
[330386438,1719339052119,-500.0,0.00019452,2]
[330386439,1719339052128,-500.0,0.00019452,2]
[330386440,1719339052138,-500.0,0.00019452,2]
[330386441,1719339052147,-500.0,0.00019452,2]
[330386442,1719339052156,-500.0,0.00019452,2]
[330386443,1719339052166,-790.05,0.00019452,2]
[330386444,1719339052175,-500.0,0.00019452,2]
[330386445,1719339052184,-500.0,0.00019452,2]
[330386446,1719339052193,-500.0,0.00019452,2]
[330386447,1719339052202,-180.43444965,0.00019452,2]
[330386448,1719339052215,-1192.37555035,0.00019452,2]
[330386449,1719339052225,-1886.63,0.00019452,2]
[330386450,1719339052235,-500.0,0.00019452,2]
[330386451,1719339052244,-500.0,0.00019452,2]
[330386452,1719339052254,-500.0,0.00019452,2]
[330386453,1719339052264,-500.0,0.00019452,2]
[330386454,1719339052274,-500.0,0.00019452,2]
[330386455,1719339052283,-734.12,0.00019452,2]
[330386456,1719339052292,-750.13,0.00019452,2]
[330386457,1719339052302,-500.0,0.00019452,2]
[330386458,1719339052311,-500.0,0.00019452,2]
[330386459,1719339052320,-758.17,0.00019452,2]
[330386460,1719339052331,-500.0,0.00019452,2]
[330386461,1719339052341,-500.0,0.00019452,2]
[330386462,1719339052351,-500.0,0.00019452,2]
[330386463,1719339052360,-500.0,0.00019452,2]
[330386464,1719339052369,-500.0,0.00019452,2]
[330386465,1719339052378,-500.0,0.00019452,2]
[330386466,1719339052388,-500.0,0.00019452,2]
[330386467,1719339052397,-500.0,0.00019452,2]
[330386468,1719339052406,-500.0,0.00019452,2]
[330386469,1719339052415,-338.06762224,0.00019452,2]
[330386470,1719339052425,-500.0,0.00019452,2]
[330386471,1719339052434,-500.0,0.00019452,2]
[330386472,1719339052444,-500.0,0.00019452,2]
[330386473,1719339052452,-500.0,0.00019452,2]
[330386474,1719339052462,-500.0,0.00019452,2]
[330386475,1719339052471,-500.0,0.00019452,2]
[330386476,1719339052481,-519.71,0.00019452,2]
[330386477,1719339052490,-865.57,0.00019452,2]
[330386478,1719339052500,-500.0,0.00019452,2]
[330386479,1719339052510,-1841.89,0.00019452,2]
[330386480,1719339052526,-503.94,0.00019452,2]
[330386481,1719339052543,-1775.11,0.00019452,2]
[330386482,1719339052554,-500.0,0.00019452,2]
[330386483,1719339052563,-200.0,0.00019452,2]
[330386484,1719339052573,-1569.21,0.00019452,2]
[330386485,1719339052582,-500.0,0.00019452,2]
[330386486,1719339052593,-500.0,0.00019452,2]
[330386487,1719339052602,-500.0,0.00019452,2]
[330386488,1719339052612,-562.3,0.00019452,2]
[330386489,1719339052622,-927.04,0.00019452,2]
[330386490,1719339052632,-500.0,0.00019452,2]
[330386491,1719339052641,-500.0,0.00019452,2]
[330386492,1719339052650,-500.0,0.00019452,2]
[330386493,1719339052660,-500.0,0.00019452,2]
[330386494,1719339052670,-384.64714772,0.00019452,2]
[330386495,1719339052679,-500.0,0.00019452,2]
[330386496,1719339052689,-500.0,0.00019452,2]
[330386497,1719339052698,-500.0,0.00019452,2]
[330386498,1719339052707,-500.0,0.00019452,2]
[330386499,1719339052716,-500.0,0.00019452,2]
[330386500,1719339052726,-500.0,0.00019452,2]
[330386501,1719339052736,-1625.59,0.00019452,2]
[330386502,1719339052746,-300.39821394,0.00019452,2]
[330386503,1719339052756,-500.0,0.00019452,2]
[330386504,1719339052765,-558.98,0.00019452,2]
[330386505,1719339052774,-500.0,0.00019452,2]
[330386506,1719339052783,-690.49,0.00019452,2]
[330386507,1719339052792,-500.0,0.00019452,2]
[330386508,1719339052804,-500.0,0.00019452,2]
[330386509,1719339052814,-500.0,0.00019452,2]
[330386510,1719339052823,-216.66683459,0.00019452,2]
[330386511,1719339052832,-615.47434532,0.00019452,2]
[330386512,1719339052842,-182.15069814,0.00019452,2]
[330386513,1719339052851,-1451.8,0.00019452,2]
[330386514,1719339052860,-1222.6,0.00019452,2]
[330386515,1719339052870,-500.0,0.00019452,2]
[330386516,1719339052879,-739.38,0.00019452,2]
[330386517,1719339052889,-500.0,0.00019452,2]
[330386518,1719339052898,-511.0,0.00019452,2]
[330386519,1719339052908,-500.87,0.00019452,2]
[330386520,1719339052918,-2049.69,0.00019452,2]
[330386521,1719339052927,-500.0,0.00019452,2]
[330386522,1719339052937,-500.0,0.00019452,2]
[330386523,1719339052947,-500.0,0.00019452,2]
[330386524,1719339052956,-319.30902775,0.00019452,2]
[330386525,1719339052974,-180.69097225,0.00019452,2]
[330386526,1719339052983,-500.0,0.00019452,2]
[330386527,1719339052992,-500.0,0.00019452,2]
[330386528,1719339053002,-500.0,0.00019452,2]
[330386529,1719339053011,-2403.71,0.00019452,2]
[330386530,1719339053020,-500.0,0.00019452,2]
[330386531,1719339053032,-500.0,0.00019452,2]
[330386532,1719339053043,-500.0,0.00019452,2]
[330386533,1719339053053,-928.38,0.00019452,2]
[330386534,1719339053063,-892.76,0.00019452,2]
[330386535,1719339053072,-500.0,0.00019452,2]
[330386536,1719339053083,-500.0,0.00019452,2]
[330386537,1719339053092,-500.0,0.00019452,2]
[330386538,1719339053102,-500.0,0.00019452,2]
[330386539,1719339053111,-500.0,0.00019452,2]
[330386540,1719339053120,-500.0,0.00019452,2]
[330386541,1719339053130,-263.99975969,0.00019452,2]
[330386542,1719339053139,-500.0,0.00019452,2]
[330386543,1719339053150,-2165.96,0.00019452,2]
[330386544,1719339053160,-500.0,0.00019452,2]
[330386545,1719339053169,-500.0,0.00019452,2]
[330386546,1719339053179,-979.43,0.00019452,2]
[330386547,1719339053188,-500.0,0.00019452,2]
[330386548,1719339053197,-500.0,0.00019452,2]
[330386549,1719339053207,-500.0,0.00019452,2]
[330386550,1719339053216,-500.0,0.00019452,2]
[330386551,1719339053226,-500.0,0.00019452,2]
[330386552,1719339053235,-627.31,0.00019452,2]
[330386553,1719339053244,-511.97392034,0.00019452,2]
[330386554,1719339053254,-11228.87901751,0.00019452,2]
[330386555,1719339053288,-1365.34814,0.00019452,2]
[330386556,1719339053301,-1053.12151676,0.00019452,2]
[330386557,1719339053312,-2822.10862858,0.00019452,2]
[330386558,1719339067332,166.43,0.00019162,30]
[330386562,1719339634075,169.43,0.00013997,2]
[330386563,1719339686601,200.0,0.0001393,2]
[330386564,1719339697341,290.37415106,0.00013997,2]
[330386565,1719339708978,155.0,0.00013997,2]
[330386566,1719339712288,155.0,0.00013997,2]
[330386567,1719339716983,152.56,0.00018849,30]
[330386568,1719339727271,155.0,0.00013997,2]
[330386570,1719339799335,205.20185962,0.00013997,2]
[330386581,1719340123931,173.49,0.00025523,120]
[330386583,1719340170994,300.75515014,0.00013997,2]
[330386584,1719340174871,944.25093946,0.00014999,2]
[330386585,1719340175363,290.37415106,0.00013997,2]
[330386587,1719340225123,169.43,0.00013465,2]
[330386588,1719340229926,2491.01847886,0.00014999,2]
[330386603,1719340234514,-509.24,0.0001546,2]
[330386604,1719340234524,-512.19400641,0.00016238,2]
[330386605,1719340234534,-616.731,0.00016239,2]
[330386606,1719340234544,-300.0,0.00016778,2]
[330386607,1719340234555,-3658.35475857,0.00016779,2]
[330386608,1719340234620,-1035.25322569,0.00016779,2]
[330386609,1719340234632,-756.03810701,0.00016779,2]
[330386610,1719340234644,-2200.0,0.00016779,2]
[330386611,1719340234656,-3421.26789501,0.00016779,2]
[330386612,1719340234669,-8535.37475197,0.00016779,2]
[330386613,1719340234679,-200.0,0.000168,2]
[330386614,1719340234688,-250.0,0.00016896,2]
[330386615,1719340234697,-250.0,0.00016899,2]
[330386616,1719340234706,-150.0,0.00016964,2]
[330386617,1719340234716,-173.49,0.00017015,2]
[330386618,1719340234725,-796.48,0.00017015,2]
[330386619,1719340234735,-224.99,0.00017015,2]
[330386620,1719340234744,-499.99,0.00017015,2]
[330386621,1719340234753,-150.29,0.0001702,2]
[330386622,1719340234764,-1000.0,0.000171,2]
[330386623,1719340234774,-500.0,0.00017114,2]
[330386624,1719340234784,-2703.18,0.00017142,2]
[330386625,1719340234794,-200.0,0.00017256,2]
[330386626,1719340234803,-245.87786054,0.00017338,2]
[330386627,1719340234816,-4655.07213946,0.00017338,2]
[330386628,1719340234825,-3559.35875065,0.00017343,2]
[330386629,1719340234837,-2348.46124935,0.00017343,2]
[330386630,1719340234847,-10714.33875065,0.00017413,2]
[330386631,1719340234859,-1849.06074732,0.00017413,2]
[330386632,1719340234870,-4991.57050203,0.00017413,2]
[330386633,1719340234880,-150.29,0.00017464,2]
[330386634,1719340234890,-145.59487876,0.00017468,2]
[330386635,1719340234902,-3080.75512124,0.00017468,2]
[330386636,1719340234920,-343.71,0.00017497,2]
[330386637,1719340234930,-729.19,0.00017556,2]
[330386638,1719340234940,-509.24,0.00017723,2]
[330386639,1719340234963,-150.29,0.00017907,2]
[330386640,1719340234973,-203.66,0.00017996,2]
[330386641,1719340234984,-169.73,0.00018046,2]
[330386642,1719340234994,-420.0,0.00018329,2]
[330386643,1719340235006,-482.75596204,0.00018695,2]
[330386644,1719340235016,-155.0,0.00018754,2]
[330386645,1719340235027,-150.0,0.00018755,2]
[330386646,1719340235037,-219.67573938,0.00018877,2]
[330386647,1719340235047,-155.0,0.00018877,2]
[330386648,1719340235058,-2279.74836191,0.00018878,2]
[330386649,1719340235069,-330.63323036,0.00018878,2]
[330386650,1719340235079,-2338.98008076,0.00018878,2]
[330386651,1719340235094,-10750.20261924,0.00018878,2]
[330386652,1719340235104,-65604.2226,0.00018878,2]
[330386653,1719340235114,-196.17673017,0.00018977,2]
[330386654,1719340235124,-122905.6922,0.00018978,2]
[330386655,1719340235134,-4594.1367,0.00018978,2]
[330386656,1719340235144,-6463.0961,0.00018978,2]
[330386657,1719340235155,-3106.52214219,0.00019076,2]
[330386658,1719340235165,-1069.94736295,0.00019077,2]
[330386659,1719340235176,-159.3134459,0.00019078,2]
[330386660,1719340235186,-181.04384057,0.00019078,2]
[330386661,1719340235196,-179.77556321,0.00019078,2]
[330386662,1719340235208,-174.52984006,0.00019078,2]
[330386663,1719340235218,-6364.6309,0.00019078,2]
[330386664,1719340235229,-1000.0,0.00019078,2]
[330386665,1719340235239,-400.8451,0.00019078,2]
[330386666,1719340235248,-366.11090361,0.00019099,2]
[330386667,1719340235258,-222.61749785,0.00019099,2]
[330386668,1719340235268,-10025.53014099,0.000191,2]
[330386669,1719340235278,-155.0,0.00019161,2]
[330386670,1719340235288,-155.0,0.00019161,2]
[330386671,1719340235298,-155.0,0.00019161,2]
[330386672,1719340235308,-27230.27163246,0.00019162,2]
[330386673,1719340235318,-155.0,0.00019162,2]
[330386674,1719340235329,-285.86312721,0.00019162,2]
[330386675,1719340235339,-235.14915832,0.00019162,2]
[330386676,1719340235350,-155.0,0.00019162,2]
[330386677,1719340235360,-206.03175266,0.00019163,2]
[330386678,1719340235370,-314.01483175,0.00019163,2]
[330386679,1719340235380,-378.6472136,0.00019167,2]
[330386680,1719340235389,-364.844001,0.00019167,2]
[330386681,1719340235400,-364.844001,0.00019167,2]
[330386682,1719340235410,-185.87693565,0.00019168,2]
[330386683,1719340235422,-805.65610875,0.00019169,2]
[330386684,1719340235432,-1607.60830694,0.00019177,2]
[330386685,1719340235441,-500.0,0.00019178,2]
[330386686,1719340235453,-631.63449895,0.00019178,2]
[330386687,1719340235464,-200.0,0.00019178,2]
[330386688,1719340235476,-620.07,0.00019178,2]
[330386689,1719340235486,-621.12,0.00019178,2]
[330386690,1719340235496,-500.0,0.00019178,2]
[330386691,1719340235508,-1017.7,0.00019178,2]
[330386692,1719340235518,-500.0,0.00019178,2]
[330386693,1719340235528,-597.52,0.00019178,2]
[330386694,1719340235540,-500.0,0.00019178,2]
[330386695,1719340235550,-529.58,0.00019178,2]
[330386696,1719340235560,-500.0,0.00019178,2]
[330386697,1719340235570,-500.0,0.00019178,2]
[330386698,1719340235580,-543.34,0.00019178,2]
[330386699,1719340235589,-639.52,0.00019178,2]
[330386700,1719340235599,-510.15904116,0.00019178,2]
[330386701,1719340235608,-1173.98,0.00019178,2]
[330386702,1719340235618,-927.88,0.00019178,2]
[330386703,1719340235628,-500.0,0.00019178,2]
[330386704,1719340235637,-500.0,0.00019178,2]
[330386705,1719340235647,-500.0,0.00019178,2]
[330386706,1719340235657,-500.0,0.00019178,2]
[330386707,1719340235667,-684.05,0.00019178,2]
[330386708,1719340235677,-1634.26,0.00019178,2]
[330386709,1719340235687,-500.0,0.00019178,2]
[330386710,1719340235697,-500.0,0.00019178,2]
[330386711,1719340235706,-2118.06,0.00019178,2]
[330386712,1719340235716,-1005.68,0.00019178,2]
[330386713,1719340235726,-500.0,0.00019178,2]
[330386714,1719340235735,-500.0,0.00019178,2]
[330386715,1719340235746,-750.77,0.00019178,2]
[330386716,1719340235755,-500.0,0.00019178,2]
[330386717,1719340235765,-500.0,0.00019178,2]
[330386718,1719340235774,-1147.89,0.00019178,2]
[330386719,1719340235784,-500.0,0.00019178,2]
[330386720,1719340235794,-500.0,0.00019178,2]
[330386721,1719340235808,-500.0,0.00019178,2]
[330386722,1719340235819,-500.0,0.00019178,2]
[330386723,1719340235829,-500.0,0.00019178,2]
[330386724,1719340235839,-500.0,0.00019178,2]
[330386725,1719340235849,-568.39,0.00019178,2]
[330386726,1719340235859,-500.0,0.00019178,2]
[330386727,1719340235870,-500.0,0.00019178,2]
[330386728,1719340235880,-500.0,0.00019178,2]
[330386729,1719340235890,-547.63,0.00019178,2]
[330386730,1719340235900,-743.45,0.00019178,2]
[330386731,1719340235916,-895.96,0.00019178,2]
[330386732,1719340235926,-1416.45,0.00019178,2]